bitfinex-derivatives/quotes_SOLF0:USTF0_20241012
["timestamp","ask_amount","ask_price","bid_price","bid_amount"]
[1728729739577,11.8554,146.43,146.4,3.416]
[1728729740273,11.8554,146.43,146.38,8.44]
[1728729740578,8.44,146.41,146.39,8.32628926]
[1728729740779,8.44,146.41,146.39,3.4162]
[1728729743681,3.4157,146.42,146.39,3.4162]
[1728729743977,8.44,146.42,146.39,3.4162]
[1728729746574,11.8557,146.42,146.39,3.4162]
[1728729746775,8.44,146.41,146.39,3.4162]
[1728729747579,11.8559,146.41,146.38,3.3414018]
[1728729747880,11.8559,146.41,146.35,8.44]
[1728729748185,11.8559,146.41,146.37,3.4167]
[1728729748386,11.8559,146.41,146.36,4.91020329]
[1728729748682,11.8559,146.41,146.37,8.32690329]
[1728729748875,3.4161,146.4,146.38,4.91020329]
[1728729749076,3.4161,146.4,146.37,3.4167]
[1728729749276,3.4161,146.4,146.38,4.91035322]
[1728729749473,3.4161,146.4,146.37,3.4167]
[1728729749675,3.4161,146.4,146.38,4.91024808]
[1728729749976,3.4161,146.4,146.37,3.4167]
[1728729750182,11.856,146.41,146.38,4.91025795]
[1728729750379,11.856,146.41,146.37,3.4167]
[1728729750578,11.856,146.41,146.38,4.91035066]
[1728729750781,11.856,146.41,146.37,3.4167]
[1728729750979,11.856,146.41,146.38,4.91101229]
[1728729751187,11.856,146.41,146.37,3.4167]
[1728729751383,11.856,146.41,146.38,4.91136912]
[1728729751578,11.856,146.41,146.37,3.4167]
[1728729751778,11.856,146.41,146.38,4.91145947]
[1728729751975,11.856,146.41,146.37,3.4167]
[1728729752186,8.44,146.39,146.37,3.4167]
[1728729753785,8.44,146.39,146.36,11.8569]
[1728729753985,8.44,146.39,146.37,4.91213337]
[1728729754182,8.44,146.39,146.36,11.8569]
[1728729754380,8.44,146.39,146.37,4.91224263]
[1728729754590,3.4162,146.4,146.36,11.85952514]
[1728729754591,8.44,146.4,146.36,11.85952514]
[1728729754886,8.44,146.4,146.37,4.91180226]
[1728729755185,8.44,146.4,146.37,3.4167]
[1728729758685,8.44,146.4,146.37,3.4168]
[1728729758886,8.44,146.4,146.36,11.85952514]
[1728729759077,8.44,146.4,146.37,4.91173647]
[1728729759281,8.44,146.4,146.36,11.85952514]
[1728729759482,8.44,146.4,146.37,4.91181386]
[1728729759789,8.44,146.4,146.36,11.85952514]
[1728729759981,8.44,146.4,146.38,3.4165]
[1728729761197,8.44,146.4,146.36,11.85952514]
[1728729761198,8.44,146.4,146.37,3.4167]
[1728729761878,3.416,146.41,146.36,11.85952514]
[1728729762079,11.856,146.41,146.38,3.4166]
[1728729765397,3.4157,146.42,146.38,3.4166]
[1728729765584,8.44,146.41,146.38,3.4166]
[1728729767899,11.8562,146.4,146.37,3.4168]
[1728729768299,11.8562,146.4,146.34,12.5331]
[1728729768496,11.8562,146.4,146.36,3.4169]
[1728729768996,11.8562,146.4,146.37,4.91211332]
[1728729769299,11.8562,146.4,146.35,3.4171]
[1728729769496,8.44,146.39,146.36,4.91260569]
[1728729769689,8.44,146.39,146.37,4.91260569]
[1728729769894,11.8566,146.38,146.34,4.7875]
[1728729770198,11.8566,146.38,146.35,4.91401383]
[1728729770396,11.8566,146.38,146.36,4.91401383]
[1728729770599,11.8566,146.38,146.34,1.3701]
[1728729770795,11.8566,146.38,146.35,8.33189519]
[1728729770996,11.8566,146.38,146.36,4.91459519]
[1728729771202,11.8566,146.38,146.35,3.4173]
[1728729771403,11.8566,146.38,146.36,4.91514639]
[1728729771698,11.8566,146.38,146.35,3.4173]
[1728729771899,11.8566,146.38,146.36,4.91514459]
[1728729772099,11.8566,146.38,146.35,3.4173]
[1728729772303,11.8566,146.38,146.36,4.91538667]
[1728729772502,11.8566,146.38,146.35,3.4173]
[1728729772702,11.8566,146.38,146.36,4.91577504]
[1728729773002,11.8566,146.38,146.35,3.4173]
[1728729773197,11.8566,146.38,146.36,4.91577504]
[1728729773403,11.8566,146.38,146.35,3.4173]
[1728729773598,11.8566,146.38,146.36,4.91634935]
[1728729773804,11.8566,146.38,146.35,3.4173]
[1728729774006,11.8566,146.38,146.36,4.91634935]
[1728729774206,11.8566,146.38,146.35,3.4173]
[1728729774405,11.8566,146.38,146.36,4.91649696]
[1728729774598,11.8566,146.38,146.35,3.4173]
[1728729774798,11.8566,146.38,146.36,4.91695191]
[1728729774999,11.8566,146.38,146.35,3.4173]
[1728729775199,11.8566,146.38,146.36,4.91695191]
[1728729775401,11.8566,146.38,146.35,3.4173]
[1728729775797,11.8566,146.38,146.36,4.91741505]
[1728729776000,11.8566,146.38,146.35,3.4173]
[1728729776299,11.8566,146.38,146.36,4.91741505]
[1728729776499,3.4166,146.38,146.35,3.4173]
[1728729776708,8.44,146.38,146.36,4.91787362]
[1728729776904,8.44,146.39,146.37,4.91787362]
[1728729777100,8.44,146.39,146.36,3.4169]
[1728729777301,8.44,146.39,146.37,4.91753692]
[1728729777505,8.44,146.39,146.36,3.4169]
[1728729777806,8.44,146.39,146.37,4.91771219]
[1728729778004,11.8564,146.39,146.36,3.4169]
[1728729778209,11.8564,146.39,146.37,4.91771219]
[1728729778511,11.8564,146.39,146.36,3.4169]
[1728729778806,8.44,146.39,146.37,4.91873243]
[1728729778998,8.44,146.39,146.36,3.4169]
[1728729779201,8.44,146.39,146.37,4.9182144]
[1728729779402,8.44,146.39,146.37,3.4167]
[1728729779701,8.44,146.39,146.36,3.40119769]
[1728729779906,8.44,146.39,146.37,4.91867299]
[1728729780107,8.44,146.39,146.36,3.4169]
[1728729780303,8.44,146.39,146.37,4.91846128]
[1728729780499,8.44,146.39,146.36,3.4169]
[1728729780703,8.44,146.39,146.37,4.91864796]
[1728729780900,8.44,146.39,146.36,3.4169]
[1728729781112,8.44,146.39,146.37,4.91870545]
[1728729781309,8.44,146.39,146.36,6.78050785]
[1728729781509,11.8564,146.39,146.37,4.91904717]
[1728729781715,11.8564,146.39,146.38,4.91904717]
[1728729782014,11.8564,146.39,146.36,6.78050785]
[1728729782209,11.8564,146.39,146.37,4.91947928]
[1728729782414,11.8564,146.39,146.38,4.91947928]
[1728729782803,11.8564,146.39,146.36,6.78050785]
[1728729783008,11.8564,146.39,146.37,4.91969862]
[1728729783314,11.8564,146.39,146.38,4.91969862]
[1728729784210,8.44,146.39,146.38,4.91969862]
[1728729785313,3.416,146.41,146.38,4.91969862]
[1728729785502,1.3977,146.44,146.39,8.33642102]
[1728729785708,3.4152,146.44,146.4,4.91906918]
[1728729785904,11.8552,146.44,146.38,8.44]
[1728729786114,11.8552,146.44,146.4,3.4159]
[1728729786312,11.8552,146.44,146.38,8.44]
[1728729786503,11.8552,146.44,146.41,4.9175773]
[1728729786708,11.8552,146.44,146.39,3.43616068]
[1728729786906,11.8552,146.44,146.4,4.91728032]
[1728729787113,11.8552,146.44,146.41,4.91728032]
[1728729787321,0.12502,146.45,146.43,3.4154]
[1728729787813,8.56502,146.45,146.42,3.4155]
[1728729788611,0.12502,146.45,146.42,3.4155]
[1728729788810,3.53992,146.45,146.42,3.4155]
[1728729789210,8.44,146.44,146.42,3.4155]
[1728729789411,3.53992,146.45,146.42,3.4155]
[1728729789608,8.44,146.44,146.42,3.4155]
[1728729792919,3.53992,146.45,146.42,3.4155]
[1728729793217,8.44,146.44,146.42,3.4155]
[1728729794520,0.12502,146.45,146.39,9.8058]
[1728729794820,8.56502,146.45,146.4,13.35955604]
[1728729795020,8.56502,146.45,146.41,4.91955604]
[1728729795222,8.56502,146.45,146.42,8.33515604]
[1728729795422,8.56502,146.45,146.42,3.4156]
[1728729798816,11.98002,146.45,146.42,3.4156]
[1728729799419,8.44,146.44,146.42,3.4156]
[1728729799620,8.44,146.43,146.38,3.41770875]
[1728729799824,8.44,146.43,146.39,4.92323461]
[1728729800120,0.12502,146.45,146.4,4.92323461]
[1728729800427,8.44,146.43,146.41,4.92221095]
[1728729800724,8.44,146.43,146.39,11.79949682]
[1728729800922,8.44,146.43,146.4,4.92199443]
[1728729801124,8.44,146.43,146.41,8.33769443]
[1728729801422,8.44,146.43,146.41,3.4157]
[1728729803129,3.4152,146.44,146.41,3.4157]
[1728729803321,8.44,146.43,146.41,3.4157]
[1728729804118,3.4152,146.44,146.39,8.44]
[1728729804119,0.12502,146.45,146.42,3.4155]
[1728729804325,8.44,146.44,146.42,3.4155]
[1728729805029,8.44,146.44,146.39,8.44]
[1728729805325,8.44,146.44,146.41,3.4158]
[1728729806626,8.44,146.44,146.42,4.92098434]
[1728729806818,8.44,146.44,146.41,3.4158]
[1728729807021,8.44,146.43,146.41,3.4158]
[1728729807229,8.44,146.43,146.42,4.92113768]
[1728729807420,8.44,146.43,146.41,3.4158]
[1728729807825,11.8552,146.44,146.41,3.4158]
[1728729808029,11.8552,146.44,146.42,4.92084178]
[1728729808230,11.8552,146.44,146.41,3.4158]
[1728729808530,11.8552,146.44,146.42,4.92060574]
[1728729808727,11.8552,146.44,146.41,3.4158]
[1728729808921,11.8552,146.44,146.42,4.92062836]
[1728729809231,11.8552,146.44,146.41,3.4158]
[1728729809530,11.8552,146.44,146.42,4.92048399]
[1728729809727,11.8552,146.44,146.41,3.4158]
[1728729810025,11.8552,146.44,146.42,4.92058653]
[1728729810227,11.8552,146.44,146.41,3.4158]
[1728729810427,8.44,146.44,146.42,4.9199841]
[1728729810627,8.44,146.44,146.41,3.4158]
[1728729811021,8.44,146.44,146.42,4.9199841]
[1728729811223,8.44,146.44,146.41,3.4158]
[1728729811530,8.44,146.44,146.42,4.91976801]
[1728729811732,8.44,146.44,146.41,3.4158]
[1728729812328,8.44,146.44,146.42,4.91970227]
[1728729812528,8.44,146.44,146.41,3.4158]
[1728729812828,8.44,146.44,146.42,4.91972607]
[1728729813022,8.44,146.44,146.41,3.4158]
[1728729814134,8.44,146.44,146.42,4.9196072]
[1728729814328,8.44,146.44,146.41,3.4158]
[1728729814549,8.44,146.44,146.42,4.91943445]
[1728729814728,8.44,146.44,146.41,3.4158]
[1728729815323,8.44,146.42,146.39,3.4162]
[1728729815523,8.44,146.42,146.4,4.91960841]
[1728729815727,8.44,146.42,146.41,4.91960841]
[1728729816535,3.4155,146.43,146.41,4.91960841]
[1728729816836,8.56502,146.45,146.41,3.4159]
[1728729817038,8.56502,146.45,146.42,4.91943467]
[1728729817334,8.44,146.44,146.41,3.4159]
[1728729817528,8.44,146.44,146.42,4.91895711]
[1728729817733,8.44,146.44,146.41,3.4159]
[1728729817934,8.44,146.44,146.42,4.91884164]
[1728729818243,8.44,146.44,146.41,3.4159]
[1728729818436,8.44,146.44,146.42,4.91863423]
[1728729818737,8.44,146.44,146.41,3.4159]
[1728729819034,8.44,146.44,146.42,4.92045401]
[1728729819233,8.44,146.44,146.41,3.4159]
[1728729819439,8.44,146.44,146.42,4.92055626]
[1728729819638,8.44,146.44,146.41,3.4159]
[1728729819937,8.44,146.44,146.42,4.92082743]
[1728729820137,8.44,146.44,146.41,3.4159]
[1728729820545,8.44,146.44,146.42,4.92074547]
[1728729820731,8.44,146.44,146.41,3.4159]
[1728729821042,8.44,146.44,146.42,4.92074547]
[1728729821340,8.44,146.44,146.41,3.4159]
[1728729821637,8.44,146.44,146.42,4.92059323]
[1728729821838,8.44,146.44,146.41,3.4159]
[1728729822039,8.44,146.44,146.42,4.92075699]
[1728729822228,8.44,146.44,146.41,3.4159]
[1728729822431,11.8552,146.44,146.41,3.4159]
[1728729822837,8.44,146.43,146.41,3.4159]
[1728729825336,8.44,146.43,146.39,11.91461125]
[1728729825542,8.44,146.43,146.4,8.33750848]
[1728729825840,8.44,146.43,146.41,4.92140848]
[1728729826039,8.44,146.43,146.4,3.4161]
[1728729826240,8.44,146.43,146.41,4.92144999]
[1728729826440,8.44,146.43,146.4,3.4161]
[1728729826642,8.44,146.43,146.41,4.92145522]
[1728729826944,8.44,146.43,146.4,3.4161]
[1728729827142,3.4152,146.44,146.4,3.4161]
[1728729827343,8.44,146.43,146.41,4.92145517]
[1728729827645,8.44,146.43,146.4,3.4161]
[1728729827844,8.44,146.43,146.41,4.92144883]
[1728729828146,8.44,146.43,146.4,3.4161]
[1728729828346,8.44,146.43,146.41,4.92156132]
[1728729828539,8.44,146.43,146.4,3.4161]
[1728729828838,8.44,146.43,146.41,4.92148828]
[1728729829040,8.44,146.43,146.4,3.4161]
[1728729829237,8.44,146.43,146.41,4.92158255]
[1728729829443,8.44,146.43,146.4,3.4161]
[1728729829643,8.44,146.43,146.41,4.92171108]
[1728729829940,8.44,146.43,146.4,3.4161]
[1728729830146,8.44,146.43,146.41,4.92173168]
[1728729830440,11.8555,146.43,146.4,3.4161]
[1728729830632,11.8555,146.43,146.41,4.92164632]
[1728729830833,11.8555,146.43,146.4,3.4161]
[1728729831034,11.8555,146.43,146.41,4.92160362]
[1728729831235,11.8555,146.43,146.4,3.4161]
[1728729831443,11.8555,146.43,146.41,4.9216628]
[1728729831744,11.8555,146.43,146.39,6.89081125]
[1728729831947,11.8555,146.43,146.4,4.92193795]
[1728729832239,11.8555,146.43,146.41,4.92193795]
[1728729832447,11.8555,146.43,146.39,6.89081125]
[1728729832744,11.8555,146.43,146.4,4.92170077]
[1728729832936,11.8555,146.43,146.41,4.92170077]
[1728729833140,11.8555,146.43,146.39,6.89081125]
[1728729833345,11.8555,146.43,146.4,4.92177567]
[1728729833644,11.8555,146.43,146.41,4.92177567]
[1728729833842,11.8555,146.43,146.39,6.89081125]
[1728729834144,3.4155,146.43,146.4,8.33787767]
[1728729834341,11.8555,146.43,146.41,4.92177767]
[1728729834539,11.8555,146.43,146.4,3.4161]
[1728729834837,11.8555,146.43,146.41,4.92180796]
[1728729835038,11.8555,146.43,146.4,3.4161]
[1728729835345,11.8555,146.43,146.41,4.92193393]
[1728729835533,11.8555,146.43,146.4,3.4161]
[1728729835734,11.8555,146.43,146.41,4.92186486]
[1728729835939,11.8555,146.43,146.4,3.4161]
[1728729836143,11.8555,146.43,146.41,4.92186486]
[1728729836339,11.8555,146.43,146.4,3.4161]
[1728729836541,11.8555,146.43,146.41,4.9216251]
[1728729836740,11.8555,146.43,146.4,3.4161]
[1728729836945,11.8555,146.43,146.41,4.9216251]
[1728729837142,11.8555,146.43,146.4,3.4161]
[1728729837547,11.8555,146.43,146.41,4.92172192]
[1728729837739,11.8555,146.43,146.4,3.4161]
[1728729838041,11.8555,146.43,146.41,4.92172192]
[1728729838240,11.8555,146.43,146.4,3.4161]
[1728729838440,11.8555,146.43,146.41,4.92180441]
[1728729838645,11.8555,146.43,146.4,3.4161]
[1728729838842,11.8555,146.43,146.41,4.92180441]
[1728729839046,11.8555,146.43,146.4,3.4161]
[1728729839247,11.8555,146.43,146.41,4.92189609]
[1728729839447,11.8555,146.43,146.4,3.4161]
[1728729839747,11.8555,146.43,146.41,4.92222079]
[1728729840041,11.8555,146.43,146.4,3.4161]
[1728729840248,11.8555,146.43,146.41,4.92222079]
[1728729840444,11.8555,146.43,146.39,6.89081125]
[1728729840639,11.8555,146.43,146.4,4.92283451]
[1728729840839,11.8555,146.43,146.41,4.92283451]
[1728729841036,11.8555,146.43,146.39,3.4162]
[1728729841037,11.8555,146.43,146.4,3.49876121]
[1728729841240,11.8555,146.43,146.41,4.9227526]
[1728729841447,11.8555,146.43,146.42,4.9227526]
[1728729841643,3.4155,146.43,146.42,4.9227526]
[1728729841848,3.4155,146.43,146.4,6.91486121]
[1728729842146,11.8555,146.43,146.41,4.92336401]
[1728729842348,11.8555,146.43,146.42,4.92393276]
[1728729842849,11.8553,146.44,146.42,4.92393276]
[1728729843149,11.8553,146.44,146.4,6.91520282]
[1728729843449,11.8553,146.44,146.41,4.92474652]
[1728729843644,11.8553,146.44,146.42,4.92474652]
[1728729843852,11.8553,146.44,146.4,6.91520282]
[1728729844050,11.8553,146.44,146.41,4.92472589]
[1728729844250,11.8553,146.44,146.42,4.92472589]
[1728729844454,11.8553,146.44,146.4,6.91520282]
[1728729844741,11.8553,146.44,146.41,4.92555352]
[1728729844949,11.8553,146.44,146.42,4.92555352]
[1728729845246,11.8553,146.44,146.4,6.91520282]
[1728729845447,11.8553,146.44,146.41,4.92655345]
[1728729845748,11.8553,146.44,146.42,4.92655345]
[1728729845947,11.8553,146.44,146.4,6.91520282]
[1728729846152,11.8553,146.44,146.41,4.92655351]
[1728729846342,11.8553,146.44,146.42,4.92655351]
[1728729846645,11.8554,146.43,146.4,6.91520282]
[1728729846839,11.8554,146.43,146.41,4.92739934]
[1728729847042,11.8554,146.43,146.42,4.92739934]
[1728729847241,11.8554,146.43,146.4,6.91520282]
[1728729847442,11.8554,146.43,146.41,4.92812407]
[1728729847652,11.8554,146.43,146.42,4.92812407]
[1728729850753,11.8554,146.43,146.42,4.93075151]
[1728729856357,11.8554,146.43,146.42,4.93554777]
[1728729857251,3.4152,146.44,146.42,4.93554777]
[1728729857448,11.8552,146.44,146.42,4.93554777]
[1728729857652,11.8552,146.44,146.41,3.4157]
[1728729857855,11.8552,146.44,146.42,4.93548039]
[1728729858051,11.8552,146.44,146.43,4.93548039]
[1728729864352,11.8552,146.44,146.41,3.4158]
[1728729864660,11.8552,146.44,146.42,4.93556041]
[1728729864856,11.8552,146.44,146.43,4.93556041]
[1728729867659,11.8552,146.44,146.41,3.4158]
[1728729867858,11.8552,146.44,146.42,4.93528086]
[1728729868166,11.8552,146.44,146.43,4.93528086]
[1728729871564,11.8552,146.44,146.43,4.93575698]
[1728729873663,11.98002,146.45,146.43,4.93575698]
[1728729873864,11.98002,146.45,146.44,4.93575698]
[1728729880268,11.98002,146.45,146.44,4.93578935]
[1728729884578,11.98002,146.45,146.41,3.4158]
[1728729884876,11.98002,146.45,146.42,4.93567384]
[1728729885077,11.98002,146.45,146.43,4.93567384]
[1728729885278,11.98002,146.45,146.44,4.93567384]
[1728729888172,11.98002,146.45,146.44,4.93589522]
[1728729891986,11.98002,146.45,146.41,3.4158]
[1728729892282,11.98002,146.45,146.44,4.93588355]
[1728729895279,11.98002,146.45,146.44,4.93597033]
[1728729898594,11.98002,146.45,146.41,3.4158]
[1728729898895,11.98002,146.45,146.42,4.9361717]
[1728729899089,11.98002,146.45,146.43,4.9361717]
[1728729899290,11.98002,146.45,146.44,4.9361717]
[1728729901986,11.98002,146.45,146.42,3.4156]
[1728729902190,11.98002,146.45,146.43,4.93657683]
[1728729902388,11.98002,146.45,146.44,4.93657683]
[1728729903903,11.98002,146.45,146.42,3.4156]
[1728729904103,11.98002,146.45,146.44,4.93687326]
[1728729905098,11.98002,146.45,146.42,3.4156]
[1728729905296,11.98002,146.45,146.43,4.93683207]
[1728729905600,11.98002,146.45,146.44,4.93683207]
[1728729908598,11.98002,146.45,146.44,4.93693443]
[1728729912099,3.4152,146.44,146.41,3.4158]
[1728729912300,8.44,146.43,146.42,4.93759049]
[1728729912509,8.44,146.43,146.41,3.4158]
[1728729912707,8.44,146.43,146.42,4.93772353]
[1728729913003,8.44,146.43,146.42,8.35332353]
[1728729913214,8.44,146.44,146.42,8.35332353]
[1728729913403,8.44,146.44,146.43,4.93772353]
[1728729915610,8.44,146.44,146.42,3.4156]
[1728729915912,8.44,146.44,146.43,4.93782355]
[1728729920512,11.8552,146.44,146.43,4.93782355]
[1728729922918,11.8552,146.44,146.41,3.4158]
[1728729923120,11.8552,146.44,146.43,4.93862154]
[1728729923814,8.44,146.44,146.43,4.93862154]
[1728729926311,11.8552,146.44,146.43,4.93862154]
[1728729927318,8.44,146.44,146.43,4.93862154]
[1728729928119,11.8552,146.44,146.43,4.93862154]
[1728729930122,11.8552,146.44,146.41,3.4158]
[1728729930523,11.8552,146.44,146.42,4.93864224]
[1728729930823,11.8552,146.44,146.43,4.93864224]
[1728729931424,3.54002,146.45,146.43,4.93864224]
[1728729931618,3.54002,146.45,146.42,3.4156]
[1728729931619,3.54002,146.45,146.44,4.93864224]
[1728729932020,11.98002,146.45,146.44,4.93864224]
[1728729933621,8.56502,146.45,146.44,4.93864224]
[1728729934216,8.56502,146.45,146.43,3.4154]
[1728729934514,8.56502,146.45,146.44,4.93679622]
[1728729937427,8.56502,146.45,146.43,3.4152]
[1728729937728,8.56502,146.45,146.44,4.93715309]
[1728729938217,0.12502,146.45,146.44,4.93715309]
[1728729938621,0.12502,146.45,146.44,8.35235309]
[1728729939922,8.56502,146.45,146.44,4.93715309]
[1728729941229,8.56502,146.45,146.43,4.7166]
[1728729941428,8.56502,146.45,146.44,4.93451029]
[1728729945029,8.56502,146.45,146.44,3.4152]
[1728729945330,8.56502,146.45,146.44,8.34842353]
[1728729948627,8.56502,146.45,146.44,3.4152]
[1728729948838,8.56502,146.45,146.44,8.34572411]
[1728729950635,0.12502,146.45,146.44,8.34572411]
[1728729952137,0.12502,146.45,146.44,3.4152]
[1728729952430,0.12502,146.45,146.44,8.34477361]
[1728729955839,0.12502,146.45,146.44,8.34134721]
[1728729956635,88.22332901,146.49,146.46,3.4145]
[1728729956940,8.44,146.48,146.45,1.3069]
[1728729957135,11.8543,146.48,146.46,4.92557761]
[1728729957330,11.8543,146.48,146.45,4.7218]
[1728729957530,11.8543,146.48,146.46,4.92536564]
[1728729957736,11.8543,146.48,146.45,4.7218]
[1728729957938,11.8543,146.48,146.46,4.92534267]
[1728729958140,11.8543,146.48,146.45,4.7218]
[1728729958432,11.8543,146.48,146.46,4.92488465]
[1728729958636,3.4143,146.48,146.45,4.7218]
[1728729958941,3.53862,146.51,146.47,3.4143]
[1728729959245,3.53862,146.51,146.45,9.7469]
[1728729959246,0.12502,146.51,146.45,9.7469]
[1728729959443,8.44,146.49,146.47,3.4143]
[1728729960741,8.44,146.48,146.47,3.4143]
[1728729960944,8.44,146.48,146.47,8.33886199]
[1728729961140,3.53862,146.51,146.47,4.92456199]
[1728729961444,8.44,146.5,146.48,3.4142]
[1728729962138,0.12502,146.51,146.48,3.4142]
[1728729962447,8.56502,146.51,146.48,3.4142]
[1728729962746,8.56502,146.51,146.46,8.44]
[1728729962941,8.56502,146.51,146.47,4.9221342]
[1728729963250,8.56502,146.51,146.48,3.4141]
[1728729964347,8.56502,146.51,146.46,8.44]
[1728729964547,8.56502,146.51,146.47,4.92028687]
[1728729964741,8.56502,146.51,146.46,8.44]
[1728729964941,8.56502,146.51,146.47,4.92050516]
[1728729965235,0.12502,146.51,146.47,8.44]
[1728729965436,0.12502,146.51,146.5,3.4138]
[1728729965640,1.42642,146.57,146.5,8.44]
[1728729965949,8.44,146.54,146.51,3.4134]
[1728729966342,3.4126,146.56,146.5,8.44]
[1728729966649,8.44,146.53,146.51,3.4135]
[1728729970945,8.44,146.53,146.49,4.1187]
[1728729971145,8.44,146.52,146.49,2.8265]
[1728729972851,8.44,146.52,146.49,11.2665]
[1728729974855,3.4133,146.53,146.49,11.2665]
[1728729975055,11.8533,146.53,146.49,11.2665]
[1728729976755,11.8533,146.53,146.5,4.89774889]
[1728729976956,11.8533,146.53,146.49,11.2665]
[1728729977146,11.8533,146.53,146.5,4.89774888]
[1728729977349,11.8533,146.53,146.49,11.2665]
[1728729982971,3.4128,146.55,146.5,8.44]
[1728729983172,1.45372,146.57,146.5,8.44]
[1728729983472,11.8529,146.54,146.5,8.44]
[1728729983868,11.8529,146.54,146.49,2.8265]
[1728729984071,11.8532,146.53,146.49,2.8265]
[1728729984368,8.44,146.53,146.49,2.8265]
[1728729984959,8.44,146.53,146.49,11.2665]
[1728729985370,3.4129,146.54,146.49,11.2665]
[1728729985572,11.8529,146.54,146.49,11.2665]
[1728729986568,8.44,146.52,146.49,2.8265]
[1728729986765,8.44,146.52,146.49,1.4144]
[1728729987869,11.8535,146.52,146.47,70.4730529]
[1728729988174,8.44,146.52,146.47,62.0330529]
[1728729988369,3.4136,146.51,146.47,62.0330529]
[1728729990171,8.44,146.5,146.46,1.332]
[1728729990478,11.8542,146.49,146.46,4.89706204]
[1728729990775,8.44,146.49,146.45,8.56502]
[1728729993176,8.44,146.49,146.45,0.12502]
[1728729993375,11.8542,146.48,146.45,0.12502]
[1728729995182,8.44,146.47,146.45,0.12502]
[1728729995368,11.8546,146.47,146.45,0.12502]
[1728729995973,11.8547,146.46,146.45,0.12502]
[1728730002877,8.44,146.46,146.38,86.89888853]
[1728730003080,3.5089,146.49,146.38,86.89888853]
[1728730003081,8.44,146.41,146.38,86.89888853]
[1728730003880,8.44,146.4,146.35,11.0875]
[1728730004083,8.44,146.4,146.36,4.91203716]
[1728730004280,8.44,146.4,146.37,4.91203716]
[1728730004586,8.44,146.4,146.35,11.0875]
[1728730004887,8.44,146.4,146.36,4.91177594]
[1728730005183,8.44,146.4,146.37,4.91177594]
[1728730005386,11.8561,146.4,146.35,2.6475]
[1728730005585,11.8561,146.4,146.36,4.91208261]
[1728730005787,11.8561,146.4,146.35,2.6475]
[1728730005976,11.8561,146.4,146.36,4.9121469]
[1728730006177,11.8561,146.4,146.35,2.6475]
[1728730006378,11.8561,146.4,146.36,4.91236639]
[1728730006581,11.8561,146.4,146.35,2.6475]
[1728730006777,11.8561,146.4,146.36,4.91119027]
[1728730006981,11.8561,146.4,146.35,1.3506]
[1728730007189,11.8561,146.4,146.36,4.91193241]
[1728730007392,11.8561,146.4,146.33,0.12502]
[1728730007589,11.8561,146.4,146.34,4.91081434]
[1728730007785,3.4169,146.37,146.35,4.91081434]
[1728730007987,8.44,146.36,146.33,0.12502]
[1728730008183,8.44,146.36,146.34,4.91195609]
[1728730008384,8.44,146.36,146.33,0.12502]
[1728730008581,8.44,146.36,146.34,4.91066982]
[1728730008793,8.44,146.36,146.33,0.12502]
[1728730009594,11.8569,146.37,146.33,8.56502]
[1728730009893,3.46964234,146.42,146.34,8.44]
[1728730009894,8.44,146.38,146.34,8.44]
[1728730010492,3.4165,146.39,146.35,3.4173]
[1728730010694,8.44,146.37,146.35,3.4173]
[1728730012991,8.44,146.37,146.34,3.4173]
[1728730015194,8.44,146.37,146.33,0.12502]
[1728730015499,8.44,146.37,146.35,3.4173]
[1728730015890,3.47705493,146.41,146.34,8.44]
[1728730016096,8.44,146.39,146.36,3.4169]
[1728730017696,8.44,146.38,146.36,3.4169]